Cogmind - Beta 16.1 @@@ ROGUE MODE // 2026.03.16 @ 19:20:17 Player: JuustuToug Result: Destroyed by 8R-AWN with 8R-AWN's Boregun Performance ------------- Evolutions (1) 500 Regions Visited (5) 1000 Robots Destroyed (62) 310 Value Destroyed (1431) 1431 Prototype IDs (36) 720 Alien Tech Used (0) 0 Bonus (285) 285 TOTAL SCORE: 4246 Bonus ------- Aligned with FarCom 300 Friendly Fire -15 Cogmind --------- Core Integrity 0/400 Matter 166/300 Energy 275/280 System Corruption 0% Temperature Cool (0) Movement Treading (240) Ox1 Location -9/Exiles Parts ------- > --- POWER (1) -------- Heavy Ion Engine > --- PROPULSION (3) --- Light Treads > --- UTILITY (3) ------ Large Storage Unit > --- WEAPON (2) ------- Mace > --- INVENTORY (15) --- Improved Heat Sink Experimental Sensor Array Hacking Suite AWS/Gauss Rocket Launcher Rocket Launcher Peak State ------------ > --- POWER ------------ Heavy Ion Engine > --- PROPULSION ------- Light Treads Light Treads Improved Treads > --- UTILITY ---------- Large Storage Unit Decoy Drone Bay > --- WEAPON ----------- AWS/Gauss > --- INVENTORY -------- Heavy Ion Engine Light Treads Light Treads Light Treads Light Treads Improved Heat Sink Experimental Sensor Array Improved Light Armor Plating Hacking Suite Rocket Launcher Rocket Launcher Mace Ripper [Rating: 41] Favorites ----------- Power Light Ion Engine Engine Light Ion Engine Propulsion Light Treads Treads Light Treads Utility Seismic Detector Device Seismic Detector Storage Large Storage Unit Hackware Hacking Suite Protection Improved Light Armor Plating Weapon Beam Cannon Energy Cannon Beam Cannon Ballistic Gun Light Assault Rifle Launcher Rocket Launcher Impact Weapon Mace Slashing Weapon Ripper Build | -11 -10 -10 -9 -9 -9 ------- Run | Yrd Mat Min Mat Min Exi Slots Evolved 2 | . . . 2 . . Power . | . . . . . . Propulsion 1 | . . . 1 . . Utility 1 | . . . 1 . . Weapon . | . . . . . . Parts Attached 44 | 6 10 1 17 3 7 Power 7 | 1 1 . 4 . 1 Engine 7 | 1 1 . 4 . 1 Core . | . . . . . . Reactor . | . . . . . . Propulsion 15 | 2 1 . 7 1 4 Treads 15 | 2 1 . 7 1 4 Leg . | . . . . . . Wheel . | . . . . . . Hover . | . . . . . . Flight . | . . . . . . Utility 12 | 1 6 . 3 1 1 Device 7 | . 4 . 2 1 . Storage 3 | 1 2 . . . . Processor . | . . . . . . Hackware 1 | . . . 1 . . Protection 1 | . . . . . 1 Artifact . | . . . . . . Weapon 10 | 2 2 1 3 1 1 Energy Gun . | . . . . . . Energy Cannon 2 | . 2 . . . . Ballistic Gun 3 | 2 . . . . 1 Ballistic Cannon . | . . . . . . Launcher 3 | . . 1 1 1 . Special Weapon . | . . . . . . Impact Weapon 1 | . . . 1 . . Slashing Weapon 1 | . . . 1 . . Piercing Weapon . | . . . . . . Special Melee Weapon . | . . . . . . Unidentified Prototypes 2 | . . . 1 1 . Parts Lost 9 | . . . . . 9 Power 1 | . . . . . 1 Propulsion 6 | . . . . . 6 Utility 1 | . . . . . 1 Weapon 1 | . . . . . 1 Highest Loss Streak 9 | . . . . . 9 To Critical Strikes 1 | . . . . . 1 Average Backups 11 | 1 8 11 13 14 13 Power 1 | . 1 1 1 1 . Propulsion 3 | . 3 5 4 4 3 Utility 3 | . 2 3 4 4 4 Weapon 2 | . 2 2 3 4 3 Tool/Special . | . . . . . . Unused Backups 17 | . 3 . 8 2 4 Power 1 | . . . 1 . . Propulsion 1 | . . . 1 . . Utility 3 | . . . 1 1 1 Weapon 11 | . 3 . 5 . 3 Tool/Special 1 | . . . . 1 . Average Slot Usage (%) 98 | . 99 100 99 100 93 Engine 12 | . 14 14 11 11 11 Treads 30 | . 27 28 32 33 31 Device 12 | . 13 14 11 11 9 Storage 12 | . 14 14 11 11 11 Hackware 4 | . . . 10 11 8 Energy Cannon 13 | . 23 28 . . . Ballistic Gun 1 | . 4 . . . . Impact Weapon 5 | . . . 10 11 10 Slashing Weapon 4 | . . . 10 10 9 Peak Build Rating 41 | 6 10 10 23 29 41 Average Rating 14 | 4 7 8 19 22 22 On Entrance 11 | . 6 8 10 21 23 Avg Prop Armor Cover (%) . | . . . . . . Naked Turns . | . . . . . . Heaviest Build 52 | 13 30 30 43 34 52 Greatest Support 63 | 40 40 40 60 63 63 Greatest Overweight (x) . | . . . . . . Average Overweight (x) . | . . . . . . Largest Inventory Capacity 15 | 8 15 15 15 15 15 Average Capacity 13 | 6 12 15 15 15 15 Most Carried 15 | 2 11 15 15 15 15 Average Carried 12 | 1 8 12 14 14 14 Final Capacity 15 | 8 15 15 15 15 15 Final Carried 15 | 2 11 15 15 15 7 Class Distribution -------------------- 82% | Mutant 17% | Scavenger-Mutant Dominant Class ---------------- Mutant | -10/Materials Mutant | -10/Mines Scavenger-Mutant | -9/Materials Mutant | -9/Mines Mutant | -9/Exiles Resources | -11 -10 -10 -9 -9 -9 ----------- Run | Yrd Mat Min Mat Min Exi Matter Collected 849 | 264 234 68 220 63 . Remotely . | . . . . . . Salvage Created 2082 | . 774 131 1124 50 3 Parts 157 | . 69 13 73 2 . Haulers Intercepted 3 | . 2 . 1 . . Recyclers Shooed . | . . . . . . Parts Field Recycled . | . . . . . . Retrieved Matter . | . . . . . . Parts Self-Destructed . | . . . . . . Prevented . | . . . . . . Parts Restored . | . . . . . . Kills | -11 -10 -10 -9 -9 -9 ------- Run | Yrd Mat Min Mat Min Exi Combat Hostiles Destroyed 47 | . 16 5 18 3 5 Melee 16 | . . . 15 . 1 Guns 9 | . 9 . . . . Cannons 9 | . 7 2 . . . AOE 11 | . . 3 1 3 4 Classes Destroyed 12 | . 8 . 3 . 1 Worker 3 | . 1 . 2 . . Builder 1 | . 1 . . . . Tunneler 4 | . 2 1 1 . . Hauler 3 | . 2 . 1 . . Recycler 4 | . . . 4 . . Operator 3 | . 2 . 1 . . Watcher 2 | . 2 . . . . Swarmer 13 | . 6 3 4 . . Grunt 24 | . 10 2 9 3 . Duelist 1 | . . . 1 . . Sentry 4 | . . . 4 . . Assembled 5 | . . . . . 5 Best Kill Streak 6 | . 4 3 6 3 5 Combat Bots Only 5 | . 3 3 3 3 5 Max Kills in Single Turn 3 | . 2 3 1 2 3 Gunslinging . | . . . . . . Exploded 3 | . . 3 1 2 3 Melee 1 | . . . 1 . 1 Uniques/NPCs Destroyed . | . . . . . . Combat | -11 -10 -10 -9 -9 -9 -------- Run | Yrd Mat Min Mat Min Exi Hostile Shots Fired 267 | . 86 5 76 6 94 Missed 56 | . 26 1 18 2 9 Hits 211 | . 60 4 58 4 85 Melee 12 | . . . 1 . 11 Projectile 199 | . 60 4 57 4 74 Critical Strikes 21 | . 2 1 . . 18 Damage Taken 3050 | . 647 57 676 48 1622 Core 544 | . 123 20 131 10 260 Absorbed by Shields . | . . . . . . Regen/Repaired (Parts) 92 | . 92 . . . . Core Remaining (%) 71 | 100 . 42 . . . Volleys Fired 69 | 1 55 6 2 3 2 Largest 2 | 2 2 2 1 1 1 Hottest 120 | 40 120 120 30 33 33 Shots Fired 129 | 2 110 10 2 3 2 Gun 44 | 2 42 . . . . Cannon 76 | . 68 8 . . . Launcher 9 | . . 2 2 3 2 Special . | . . . . . . Kinetic 44 | 2 42 . . . . Thermal 76 | . 68 8 . . . Explosive 9 | . . 2 2 3 2 Electromagnetic . | . . . . . . Robot Hit Streak 12 | 1 12 2 3 5 6 Robot Miss Streak 4 | 1 4 3 . . . Penetration Max . | . . . . . . Secondary Targets 1 | . 1 . . . . Max Gunslinging Chain 1 | . 1 . . . . Shots Hit Robots 145 | 1 59 4 53 2 26 Core Hits 76 | . 31 8 23 4 10 Critical Kills 1 | . . . 1 . . Critical Parts Destroyed 5 | . . . 3 . 2 Critical Strikes 11 | . . . 8 . 3 Smash 7 | . . . 4 . 3 Sever 4 | . . . 4 . . Melee Attacks 97 | . . . 67 . 30 Impact 37 | . . . 14 . 23 Slashing 60 | . . . 53 . 7 Piercing . | . . . . . . Sneak Attacks 15 | . . . 12 . 3 Combat Hostiles 3 | . . . . . 3 Follow-up Attacks 6 | . . . 6 . . Damage Inflicted 4856 | 10 926 209 2302 316 1093 Guns 277 | 10 267 . . . . Cannons 746 | . 659 87 . . . Explosions 801 | . . 105 129 316 251 Melee 3010 | . . . 2173 . 837 Ramming 22 | . . 17 . . 5 Kinetic 277 | 10 267 . . . . Thermal 746 | . 659 87 . . . Explosive 801 | . . 105 129 316 251 Electromagnetic . | . . . . . . Impact 842 | . . . 233 . 609 Slashing 2168 | . . . 1940 . 228 Piercing . | . . . . . . Highest Corruption . | . . . . . . Average Corruption . | . . . . . . Corruption Purged . | . . . . . . Corruption Blocked . | . . . . . . Overload Shots . | . . . . . . Overflow Damage 320 | . 19 . 199 . 102 Projectiles 19 | . 19 . . . . Explosions 19 | . . . 11 . 8 Melee 282 | . . . 188 . 94 Knockbacks 1 | . . . . . 1 Impact 1 | . . . . . 1 Kinetic . | . . . . . . Secondary . | . . . . . . Self-Inflicted Damage 28 | . . 14 . . 14 Shots 2 | . . 1 . . 1 Rammed 4 | . . 3 . . 1 Targets Rammed 4 | . . 3 . . 1 Kicked . | . . . . . . Crushed . | . . . . . . Highest Temperature 303 | . 303 96 . 9 16 Average Temperature 86 | . 94 44 . 6 10 Received Heat Transfer 645 | . 282 36 240 27 60 Effects 1 | . 1 . . . . Energy Bleed 1 | . 1 . . . . Siege Activations . | . . . . . . Martial Activations . | . . . . . . Shielding Activations . | . . . . . . Robots Disrupted . | . . . . . . Combat Hostiles . | . . . . . . Robots Corrupted 3 | . . . 3 . . Combat Hostiles 2 | . . . 2 . . Parts Fried 2 | . . . 2 . . Impact Corruptions 8 | . . . 4 . 4 Robots Melted . | . . . . . . Combat Hostiles . | . . . . . . Parts Melted . | . . . . . . Heat Transferred 1591 | . 1406 185 . . . Parts Sabotaged . | . . . . . . Parts Stolen . | . . . . . . Parts Stripped . | . . . . . . Power Chain Reactions . | . . . . . . Alert | -11 -10 -10 -9 -9 -9 ------- Run | Yrd Mat Min Mat Min Exi Maximum Alert Level 1 | . . . 1 1 . Low Security (%) 84 | 100 100 100 51 83 . Level 1 15 | . . . 48 16 . Level 2 . | . . . . . . Level 3 . | . . . . . . Level 4 . | . . . . . . Level 5 . | . . . . . . High Security . | . . . . . . Max Security . | . . . . . . Peak Influence 356 | . 185 89 356 232 . Initial 117 | . . 10 . 117 . Average 105 | . 94 19 177 135 . Influence Increases 1563 | . 583 153 707 120 . Destroy 0b10 Robot/C 840 | . 320 100 360 60 . Destroy 0b10 Robot/NC 100 | . 50 5 45 . . Destroy Leader 200 | . 88 20 82 10 . Successful Hack 46 | . 16 . 25 5 . Select Force Hacks 90 | . 60 . 30 . . Disable Machine 90 | . 15 15 15 45 . Destroy Structure 32 | . 4 13 15 . . Partial Spotted 15 | . . . 15 . . Lose Combat Pursuer 150 | . 30 . 120 . . Influence Decreases 1563 | . 556 180 405 383 39 Entered New Map 241 | . . 17 . 185 39 Time Decay 1302 | . 556 163 385 198 . Lost Ally 20 | . . . 20 . . Squads Dispatched 8 | . 6 . 2 . . Investigation 4 | . 3 . 1 . . Extermination . | . . . . . . Reinforcement 4 | . 3 . 1 . . Assault . | . . . . . . Garrison . | . . . . . . Intercept . | . . . . . . Searches Triggered . | . . . . . . Construction Impeded . | . . . . . . Haulers Reinforced . | . . . . . . Active Scanning Responses . | . . . . . . Cargo Convoy Interrupts . | . . . . . . Stealth | -11 -10 -10 -9 -9 -9 --------- Run | Yrd Mat Min Mat Min Exi Distress Signals 8 | . 2 . 6 . . Communications Jammed . | . . . . . . Distress Signals . | . . . . . . Times Spotted 113 | . 33 5 39 3 33 Peak Tracking Total 9 | . 4 3 6 3 9 Tactical Retreats 10 | . 2 . 8 . . Traps | -11 -10 -10 -9 -9 -9 ------- Run | Yrd Mat Min Mat Min Exi Traps Triggered 2 | . 1 . 1 . . Indirectly . | . . . . . . Trap Hack Attempts . | . . . . . . Triggered . | . . . . . . Disarmed . | . . . . . . Reprogrammed . | . . . . . . Reused . | . . . . . . Traps Extracted . | . . . . . . Installed 4 | . . 4 . . . Triggered . | . . . . . . Machines | -11 -10 -10 -9 -9 -9 ---------- Run | Yrd Mat Min Mat Min Exi Machines Disabled 7 | . 1 1 1 3 1 Max in Single Turn 3 | . 1 1 1 3 1 Machines Repaired . | . . . . . . Machines Dismantled . | . . . . . . Machines Sabotaged . | . . . . . . Overloaded Fab Kills . | . . . . . . Hacking | -11 -10 -10 -9 -9 -9 --------- Run | Yrd Mat Min Mat Min Exi Machines Accessed 20 | . 8 1 8 1 2 Terminals 12 | . 5 . 6 1 . Fabricators . | . . . . . . Repair Stations 1 | . 1 . . . . Recycling Units 3 | . 2 . 1 . . Scanalyzers 1 | . . . 1 . . Garrison Access . | . . . . . . Total Hacks 63 | . 28 1 29 3 2 Successful 39 | . 18 1 16 2 2 Failed 23 | . 9 . 13 1 . Catastrophic . | . . . . . . Database Lockouts 1 | . 1 . . . . Manual 49 | . 25 . 20 3 1 Terminals 52 | . 23 . 26 3 . Fabricators . | . . . . . . Repair Stations 2 | . 2 . . . . Recycling Units 4 | . 3 . 1 . . Scanalyzers 2 | . . . 2 . . Garrison Access . | . . . . . . Terminal Hacks 16 | . 4 1 7 2 2 Record 1 | . . . . . 1 Robot Analysis 2 | . . . . 2 . Prototype ID Bank 10 | . 4 . 6 . . Open Door 1 | . . 1 . . . Terminal Index 1 | . . . 1 . . Proto ID Catalog 1 | . . . . . 1 Fabricator Hacks . | . . . . . . Repair Station Hacks 2 | . 2 . . . . Scan Component 1 | . 1 . . . . Repair 1 | . 1 . . . . Recycling Unit Hacks . | . . . . . . Scanalyzer 1 | . . . 1 . . Retrieve Study 1 | . . . 1 . . Garrison Access Hacks . | . . . . . . Unauthorized Hacks 20 | . 12 . 8 . . Terminals 17 | . 10 . 7 . . Assimilate 2 | . 2 . . . . Botnet 4 | . 2 . 2 . . Operators 1 | . 1 . . . . Skim 10 | . 5 . 5 . . Fabricators . | . . . . . . Repair Stations . | . . . . . . Recycling Units 3 | . 2 . 1 . . Tunnel 3 | . 2 . 1 . . Scanalyzers . | . . . . . . Garrison Access . | . . . . . . Data Cores Recovered . | . . . . . . Used . | . . . . . . Hacking Detections 15 | . 7 . 7 1 . Full Trace Events . | . . . . . . Feedback Events . | . . . . . . Feedback Blocked . | . . . . . . Robot Schematics Acquired . | . . . . . . Robots Built . | . . . . . . Authchips . | . . . . . . Time . | . . . . . . Total Robot Build Rating . | . . . . . . Part Schematics Acquired . | . . . . . . Parts Built . | . . . . . . Authchips . | . . . . . . Time . | . . . . . . Total Part Build Rating . | . . . . . . Part Studies Acquired 1 | . . . 1 . . Parts Repaired 1 | . 1 . . . . Time 26 | . 26 . . . . Parts Recycled . | . . . . . . Recycled Matter . | . . . . . . Retrieved Matter . | . . . . . . Retrieved Components . | . . . . . . Parts Scanalyzed . | . . . . . . Part Schematics Acquired . | . . . . . . Parts Damaged . | . . . . . . Bothacking | -11 -10 -10 -9 -9 -9 ------------ Run | Yrd Mat Min Mat Min Exi Used RIF Installer . | . . . . . . Robots Hacked . | . . . . . . Non-combat . | . . . . . . Combat . | . . . . . . Robot Hacks Applied . | . . . . . . Relay Couplers Released . | . . . . . . Fabnet Peak Effective % . | . . . . . . Robots Rewired . | . . . . . . Allies Hacked . | . . . . . . Hacks Repelled . | . . . . . . Allies | -11 -10 -10 -9 -9 -9 -------- Run | Yrd Mat Min Mat Min Exi Total Allies 5 | . 2 . . 3 . Largest Group 3 | . 2 2 2 3 3 Highest-Rated Group 40 | . 20 20 20 40 40 Highest-Rated Ally 16 | . 10 10 10 16 16 Total Orders 1 | . . . 1 . . EXPLORE 1 | . . . 1 . . Ally Attacks 12 | . . . . . 12 Total Damage 11 | . . . . . 11 Kills . | . . . . . . Allies Corrupted . | . . . . . . Allies Melted . | . . . . . . Intel | -11 -10 -10 -9 -9 -9 ------- Run | Yrd Mat Min Mat Min Exi Active Infowar (turns) 4419 | . 1413 777 1177 410 642 Sensors 3 | . . . . 3 . Seismic 4416 | . 1413 777 1177 407 642 Robot Analysis Total 2 | . . . . 2 . Derelict Logs Recovered 1 | . . 1 . . . Drone Launches 16 | . . . 1 . 15 Drone Recoveries . | . . . . . . Exploration | -11 -10 -10 -9 -9 -9 ------------- Run | Yrd Mat Min Mat Min Exi Turns Passed 5123 | 74 1822 812 1212 411 792 Spaces Moved 2384 | 42 681 480 524 242 415 Core 5 | 5 . . . . . Treads 2379 | 37 681 480 524 242 415 Legs . | . . . . . . Wheels . | . . . . . . Hover . | . . . . . . Flight . | . . . . . . Fastest Speed 50 | 50 160 160 160 160 160 Average Speed 159 | 146 160 160 160 160 160 Slowest Speed 160 | 160 160 160 160 160 160 Overloaded Moves . | . . . . . . Propulsion Burnouts . | . . . . . . Robots Hopped . | . . . . . . Potential Cave-ins . | . . . . . . Cave-ins Triggered . | . . . . . . Exploration Rate (%) 60 | 3 81 95 69 48 68 Regions Visited 5 Branch Regions 3 Pre-discovered Areas 5 | . 2 . 2 . 1 Known Exits Taken 2 | . . 1 . 1 . Unknown Exits Taken 3 | 1 1 . 1 . . Scrap Searched 3 | . . 1 . 2 . Spaces Dug 19 | . . 15 . . 4 Terrain Destroyed 50 | . . 15 25 . 10 Melee . | . . . . . . Projectile . | . . . . . . AOE 50 | . . 15 25 . 10 Terrain Rammed . | . . . . . . Walls Destroyed . | . . . . . . Machines Disabled . | . . . . . . Actions | -11 -10 -10 -9 -9 -9 --------- Run | Yrd Mat Min Mat Min Exi Total 3448 | 50 1308 511 820 263 496 Wait 746 | . 524 10 181 7 24 Move 2379 | 41 680 479 523 241 415 Hop . | . . . . . . Pick Up 44 | 2 20 4 15 2 1 Fast Attach 13 | 6 2 . 2 2 1 Attach 16 | . . . 4 . 12 Detach 7 | . . . 1 . 6 Swap 36 | . 14 4 15 3 . Drop 46 | . 13 1 23 5 4 Fire 69 | 1 55 6 2 3 2 Melee 84 | . . . 54 . 30 Ram . | . . . . . . Kick . | . . . . . . Crush 4 | . . 3 . . 1 Escape Stasis . | . . . . . . Rewire . | . . . . . . Trap 4 | . . 4 . . . Miscellaneous . | . . . . . . Route ------- -11/Scrapyard -10/Materials (discovered 6 exits: *Mat x3 / *Min x2 / Sub) -10/Mines (discovered 3 exits: *Mat x2 / *Sub) -9/Materials (discovered 4 exits: *Mat x3 / *Min) -9/Mines (discovered 3 exits: Mat x2 / *Exi) -9/Exiles (discovered 1 exit: [*Min]) History --------- Turn | Location | Event 9 | -11/Scrapyard | Discovered new exit (range 15) 75 | -11/Scrapyard | Entered Materials 293 | -10/Materials | Discovered new exit (range 12) 318 | -10/Materials | Build established: Mutant 486 | -10/Materials | Discovered new exit (range 6) 529 | -10/Materials | Repaired Lgt. Treads 826 | -10/Materials | Discovered new exit (range 15) 1170 | -10/Materials | Discovered new exit (range 5) 1246 | -10/Materials | Central database locked down 1347 | -10/Materials | Identified exit to Materials 1419 | -10/Materials | Learned location of 2 exits from Mines 1483 | -10/Materials | Learned 4 Subcaves zone layouts 1538 | -10/Materials | Learned Recycling recycling unit intel 1584 | -10/Materials | Learned Storage emergency access door positions 1621 | -10/Materials | Learned location of 2 exits from Mines 1646 | -10/Materials | Loaded intel: 2 recycling unit locations 1724 | -10/Materials | Learned 4 Recycling zone layouts 1778 | -10/Materials | Identified exit to Subcaves 1897 | -10/Materials | Entered Mines 1897 | -10/Mines | Accompanied by 2 allies 2024 | -10/Mines | Found a hidden stash of uninstalled traps 2156 | -10/Mines | Core integrity fell below 50% 2330 | -10/Mines | Found the Drone Emporium 2338 | -10/Mines | Found Prototype Device 2456 | -10/Mines | A weapon hastily lodged in a ceiling crevice suddenly fell to the ground 2709 | -10/Mines | Entered Materials 2709 | -9/Materials | Accompanied by 2 allies 2709 | -9/Materials | Evolved 2 slots: Propulsion x1, Utility x1 2713 | -9/Materials | Identified Decoy Drone Bay 2734 | -9/Materials | Discovered new exit (range 50) 3145 | -9/Materials | Build established: Scavenger-Mutant 3225 | -9/Materials | Discovered new exit (range 3) 3454 | -9/Materials | Identified exit to Materials 3531 | -9/Materials | Learned location of 1 exit from Storage 3564 | -9/Materials | Learned location of 1 exit from Recycling 3574 | -9/Materials | Learned location of 2 exits from Materials 3591 | -9/Materials | Learned Storage security intel 3921 | -9/Materials | Entered Mines 3923 | -9/Mines | Identified exit to Exiles 4034 | -9/Mines | Build established: Mutant 4034 | -9/Mines | Found a damaged Exp. Sensor Array with a note attached 4038 | -9/Mines | Found Prototype Device 4038 | -9/Mines | Identified Exp. Sensor Array 4117 | -9/Mines | Assisted by bots powering up and referring to "LRC-V3" 4318 | -9/Mines | Deemed a non-threat by the Exiles lab entrance 4332 | -9/Mines | Entered Exiles 4332 | -9/Exiles | Accompanied by 3 allies 4368 | -9/Exiles | Discovered new exit (range 14) 4406 | -9/Exiles | Met 8R-AWN 4430 | -9/Exiles | Met EX-HEX 4513 | -9/Exiles | Met EX-DEC 4540 | -9/Exiles | Learned location of Zion (-6) 4649 | -9/Exiles | Met EX-BIN 4798 | -9/Exiles | Aligned with FarCom system 4800 | -9/Exiles | Given EX-Vault access code 4836 | -9/Exiles | Opened EX-Vault 4847 | -9/Exiles | Found AWS/Gauss 4880 | -9/Exiles | Warned to stay clear of 0b10 Research branches 5012 | -9/Exiles | Attacked by the Exiles 5052 | -9/Exiles | Core integrity fell below 50% 5064 | -9/Exiles | Lost 12 allies 5083 | -9/Exiles | Core integrity fell below 20% 5121 | -9/Exiles | Lost 9 parts (1p6n1u1w) 5124 | -9/Exiles | Destroyed by 8R-AWN with 8R-AWN's Boregun Last Messages --------------- 05082_ Penetrated by HV Slug. 05086_ HV Slug penetrates Machine. 05086_ Machine disabled. 05086_ HV Slug penetrates Wall. 05090_ Penetrated by HV Slug. 05090_ Hvy. Ion Engine destroyed. 05090_ Penetrated by HV Slug. 05099_ 8R-AWN suffers critical hit (Smash). 05099_ Destroyed Prototype Ballistic Gun. 05099_ 8R-AWN system corrupted by crushing effect. 05099_ Penetrated by HV Slug. 05118_ 8R-AWN suffers critical hit (Smash). 05120_ Penetrated by HV Slug. 05124_ 8R-AWN suffers critical hit (Smash). 05124_ Destroyed Rnf. Fission Core. 05124_ Destroyed Prototype Protection. 05124_ 8R-AWN system corrupted by crushing effect. 05124_ Penetrated by HV Slug. Map ----- +----------------------------------------------------+ | """""#???????????????????????????????????????????? | | """""#???????????????????????????????????????????? | | """"#???????????????????????????????????????????? | | """"#???????????????????????????????????????????? | | """#???????????????????????????????????????????? | | """#???????????????????????????????????????????? | | """#???????????????????????????????????????????? | | """#???????????????????????????????????????????? | | """#???????????????????????????????????????????? | | """"???????????????????????????????????????????? | | """#???????????????????????????????????????????? | | " """"???????????????????????????????????????????? | | " #???????????????????????????????????????????? | | """""#???????????????????????????????????????????? | | ######???????????????????????????????????????????? | | ?????????????????????????????????????????????????# | | ????????????????????????????????????????????????# | | ??????????????????????????###??????????????????? | | ?###########??????????????# #??????????????????? | | ##"""""""""##?????????????# #??????????????????? | | " """ """"##????????????# #?????????????????## | | "" " #?????????##?# #????????????????## | | " """#?????????# ## ###??????????????# | | " "#??????????#;# #;#??????????????# | | " "##????????## ! ########???????## | | ""###??????#g@ ! "# | | """#?????# =% ########??????# | | "#????# =[% ###????????### # | | ##???# =%=[ ########## # | | % ##?# #""""## ## | | " % ###% * ## | | % # * # | | % ### # | | ###"""" ##;# | | !% #" " #?#######?##### * | | ######??????????????##### | | ##???????????????????????### | | " ##??????????????????????????### | | """ ""#?????????????????????????????### | | " ""#" "##??????????????????????????????#" | | "" """##"""" ""##???????????????????????????????## | | #""""###########?????????????????????????????????? | | ######???????????????????????????????????????????? | | ?????????????????????????????????????????????????? | | ?????????????????????????????????????????????????? | | ?????????????????????????????????????????????????? | | ?????????????????????????????????????????????????? | | ?????????????????????????????????????????????????? | | ?????????????????????????????????????????????????? | | ?????????????????????????????????????????????????? | +----------------------------------------------------+ Best States ------------- Heat Dissipation 39 Energy Generation 14 Energy Capacity 280 Matter Stores 300 Matter Capacity 300 Sight Range 16 Robot Scan Range 20 Terrain Scan Density 10 Armor Coverage 150 Evasion (%) 40 Recoil Reduction 3 Offensive Hacking 10 Item Schematics ----------------- None Robot Schematics ------------------ None Fabricated ------------ Nothing Repaired ---------- Lgt. Treads | 34% | -10/Materials Studied --------- Mace | -9/Materials | Hacked Alien Tech Used ----------------- None Achievements -------------- None Challenges ------------ None Game ------ Seed DamperDamperForcewell Manual? 0 Play Time 00:31:37 Cumulative 383.5 hours Start 2026.03.16 @ 18:51:10 End 2026.03.16 @ 19:20:17 Sessions 1 Manual Loads 0 Difficulty Rogue Special Mode None Game No. 239 Rogue 239 Adventurer 0 Explorer 0 Win Type - Total 15 Types 9/1/3/1/0/0/0/1/0/0 Lore% 93 Gallery% 80 Achievement% 70 Wizard Run 0 Options --------- Layout 1 ASCII 0 Keyboard 0 Movement Mouse Keybinds 0 Fullscreen 2 Font 32/SmallcapsGlow Map View 50x35 Zoom Use 0% Tactical HUD 1 Map Filters NONE Filters NONE Steam 1 RUN: b3aa800e-0537-4408-99e7-04f038cb9d55